bitfinex/quotes_SOLUSD_20250305
["timestamp","ask_amount","ask_price","bid_price","bid_amount"]
[1741198546457,0.03,143.42,143.41,18.933972]
[1741198547155,0.03,143.42,143.41,330.933972]
[1741198547775,0.03,143.42,143.41,312.0]
[1741198548065,0.03,143.42,143.4,80.9]
[1741198548968,0.03,143.42,143.4,87.8733]
[1741198549272,0.03,143.42,143.41,18.933972]
[1741198549847,0.03,143.42,143.4,80.9]
[1741198550149,0.03,143.42,143.41,18.933972]
[1741198550465,0.03,143.42,143.41,19.07613357]
[1741198550670,0.03,143.42,143.41,272.68851025]
[1741198550866,0.03,143.42,143.41,583.22456288]
[1741198551166,0.03,143.49,143.46,0.14216157]
[1741198551346,0.03,143.49,143.47,18.933972]
[1741198552665,0.03,143.49,143.46,81.04216157]
[1741198553473,0.03,143.49,143.48,0.14216157]
[1741198553851,0.03,143.49,143.48,27.37542931]
[1741198554161,0.03,143.49,143.48,245.17542931]
[1741198554460,0.03,143.49,143.48,557.31759088]
[1741198554666,0.03,143.49,143.48,576.25156288]
[1741198554979,0.03,143.51,143.5,0.56864628]
[1741198555271,0.03,143.51,143.5,266.98828096]
[1741198555577,0.03,143.54,143.53,20.0]
[1741198555776,0.03,143.54,143.53,285.71393976]
[1741198555979,0.03,143.54,143.53,285.52556234]
[1741198556147,0.03,143.57,143.56,20.56864628]
[1741198556351,0.03,143.57,143.56,88.5958948]
[1741198556563,0.03,143.57,143.56,133.14725484]
[1741198556773,0.03,143.57,143.56,158.7626037]
[1741198556989,0.03,143.57,143.56,299.3206037]
[1741198557278,0.03,143.6,143.59,89.73467047]
[1741198557450,0.03,143.6,143.59,310.26959856]
[1741198557650,0.03,143.6,143.59,308.80813758]
[1741198557851,106.95276207,143.71,143.6,71.21829514]
[1741198558047,106.95276207,143.71,143.67,0.42648471]
[1741198558280,106.95276207,143.71,143.69,0.14216157]
[1741198558490,106.95276207,143.71,143.7,0.42648471]
[1741198558994,106.95276207,143.71,143.7,144.24317047]
[1741198559158,42.83378416,143.77,143.7,100.11829514]
[1741198559159,6.9556,143.77,143.7,100.11829514]
[1741198559364,6.9556,143.77,143.71,0.28432314]
[1741198559565,20.928912,144.03,143.87,50.0]
[1741198559758,6.9434,144.02,143.88,0.14216157]
[1741198560097,6.9434,144.02,143.9,44.2670369]
[1741198560296,6.9434,144.02,143.88,2.42648471]
[1741198560297,20.928912,144.03,143.93,0.56864628]
[1741198560460,20.928912,144.03,143.92,44.12487533]
[1741198560461,20.928912,144.03,143.99,20.0]
[1741198560797,6.9396,144.1,143.99,64.12487533]
[1741198560979,3.46443053,144.14,143.98,2.02667978]
[1741198560980,6.9376,144.14,144.01,62.77452419]
[1741198561292,23.7818,144.14,143.99,45.58237176]
[1741198561465,62.3657693,144.14,144.01,0.56864628]
[1741198561779,62.3657693,144.14,144.0,0.28432314]
[1741198561981,62.3657693,144.14,144.0,312.0]
[1741198562474,62.3657693,144.14,143.97,44.12487533]
[1741198562475,18.64964886,144.12,144.02,14.21563044]
[1741198562861,38.5839693,144.13,144.02,14.21563044]
[1741198562862,6.9391,144.11,144.02,14.21563044]
[1741198563569,6.5843,144.15,144.03,14.21563044]
[1741198563774,6.9376,144.15,144.03,14.21563044]
[1741198563979,38.8417781,144.2,144.03,14.21563044]
[1741198564176,44.55601352,144.2,144.03,14.21563044]
[1741198564474,18.64964886,144.19,144.04,0.56864628]
[1741198564680,4.1661781,144.2,144.04,44.69352161]
[1741198564862,0.70702344,144.2,144.11,10.53407837]
[1741198565063,0.70702344,144.2,144.12,0.56864628]
[1741198565274,24.2566,144.29,144.14,0.56864628]
[1741198565467,81.0,144.28,144.18,312.0]
[1741198565668,24.2566,144.29,144.18,312.0]
[1741198566262,60.909,144.29,144.11,10.53407837]
[1741198566477,81.0,144.28,144.11,10.53407837]
[1741198566679,18.64964886,144.27,144.11,10.53407837]
[1741198566867,6.9314,144.27,144.12,2.02527663]
[1741198567071,81.0,144.26,144.15,44.12487533]
[1741198567289,18.64964886,144.25,144.15,44.12487533]
[1741198567499,18.64964886,144.25,144.14,0.56864628]
[1741198567787,18.64964886,144.25,144.14,44.40919847]
[1741198567995,18.64964886,144.25,144.13,44.12487533]
[1741198568195,81.0,144.26,144.14,44.40919847]
[1741198568363,81.0,144.26,144.14,44.12487533]
[1741198568564,81.0,144.26,144.11,1.45638854]
[1741198568565,18.933972,144.24,144.11,1.45638854]
[1741198568864,81.0,144.26,144.14,44.12487533]
[1741198569069,6.9319,144.26,144.14,44.12487533]
[1741198569289,6.9319,144.26,144.16,312.0]
[1741198569970,6.9319,144.26,144.17,44.12487533]
[1741198570283,7.8168,144.28,144.19,44.12487533]
[1741198570492,7.8168,144.28,144.18,7.26]
[1741198570987,7.8168,144.28,144.18,51.38487533]
[1741198571283,25.1442,144.28,144.18,7.26]
[1741198572480,18.79181043,144.27,144.18,7.26]
[1741198572787,18.79181043,144.25,144.09,1.45630837]
[1741198572976,19.07613357,144.23,144.1,44.12487533]
[1741198573173,18.79181043,144.21,144.1,44.12487533]
[1741198573380,18.79181043,144.21,144.08,1.4566864]
[1741198573718,18.64964886,144.19,144.05,1.5621]
[1741198573873,81.14216157,144.18,144.05,44.12487533]
[1741198574071,81.14216157,144.18,144.05,1.45728075]
[1741198574272,81.14216157,144.18,144.05,44.12487533]
[1741198574471,0.42648471,144.16,144.02,44.12487533]
[1741198574682,0.42648471,144.16,144.01,45.58220361]
[1741198574893,19.07613357,144.14,144.0,63.84757807]
[1741198575272,24.2835,144.13,144.01,44.12487533]
[1741198575485,24.2835,144.13,144.02,44.12487533]
[1741198575791,18.79181043,144.12,143.99,44.12487533]
[1741198575979,0.14216157,144.11,143.98,44.12487533]
[1741198576176,99.79181043,144.12,143.97,1.45763151]
[1741198576177,99.79181043,144.12,143.97,1.88411622]
[1741198576379,81.0,144.11,143.98,44.55136004]
[1741198576580,18.79181043,144.12,143.98,44.55136004]
[1741198576581,99.79181043,144.1,143.98,312.0]
[1741198576784,18.79181043,144.08,143.94,45.39524592]
[1741198576979,0.14216157,144.05,143.94,1.27037059]
[1741198577180,24.3003,144.03,143.94,1.27037059]
[1741198577502,24.3003,144.03,143.91,52.84336275]
[1741198577792,24.3003,144.03,143.92,44.12487533]
[1741198577977,18.64964886,144.02,143.91,7.26]
[1741198578178,24.3003,144.03,143.91,51.38487533]
[1741198578389,6.9429,144.03,143.94,44.12487533]
[1741198578767,6.9429,144.03,143.96,44.12487533]
[1741198578967,6.9429,144.03,143.95,45.5832751]
[1741198579378,24.2936,144.07,143.95,1.45839977]
[1741198579574,24.2936,144.07,143.95,45.5832751]
[1741198579875,24.2936,144.07,144.0,44.12487533]
[1741198580100,81.0,144.12,144.0,44.12487533]
[1741198580607,0.28432314,144.08,143.96,313.2701941]
[1741198580784,0.28432314,144.06,143.96,1.2701941]
[1741198581383,0.28432314,144.04,143.91,51.38487533]
[1741198581703,81.0,144.04,143.92,45.58355497]
[1741198582085,18.64964886,144.03,143.92,44.12487533]
[1741198582299,18.64964886,144.03,143.9,44.12487533]
[1741198582504,18.64964886,144.03,143.9,45.58359014]
[1741198583076,0.14216157,144.02,143.89,53.02997533]
[1741198583296,0.14216157,144.02,143.86,143.4019]
[1741198583297,24.3089,143.98,143.86,136.9]
[1741198583487,0.28432314,143.96,143.83,7.26]
[1741198583805,18.79181043,143.94,143.83,319.26]
[1741198584001,99.79181043,143.94,143.83,319.26]
[1741198584183,99.79181043,143.94,143.83,7.26]
[1741198584901,99.64964886,143.94,143.83,7.26]
[1741198585092,81.0,143.94,143.84,44.12487533]
[1741198585401,24.3132,143.96,143.85,44.12487533]
[1741198585607,24.3132,143.96,143.85,125.02487533]
[1741198586278,24.3132,143.96,143.85,80.9]
[1741198586611,18.64964886,143.95,143.85,80.9]
[1741198586789,0.14216157,143.94,143.83,7.26]
[1741198586985,0.14216157,143.94,143.8,8.71963582]
[1741198586986,81.28432314,143.94,143.8,8.71963582]
[1741198587184,18.64964886,143.92,143.85,312.0]
[1741198587384,99.64964886,143.92,143.85,312.0]
[1741198587721,24.3206,143.91,143.85,312.0]
[1741198588010,0.28432314,143.89,143.79,0.033]
[1741198588216,18.64964886,143.88,143.79,0.033]
[1741198588597,0.28432314,143.87,143.79,0.033]
[1741198589528,6.9521,143.84,143.79,0.033]
[1741198589717,24.3325,143.84,143.79,0.033]
[1741198590023,6.9521,143.84,143.79,0.033]
[1741198590326,99.64964886,143.83,143.79,0.033]
[1741198591510,6.9531,143.82,143.79,0.033]
[1741198591709,7.09376157,143.85,143.79,0.033]
[1741198592059,18.64964886,143.84,143.79,0.033]
[1741198592209,0.14216157,143.83,143.79,0.033]
[1741198592588,18.79181043,143.81,143.79,0.033]
[1741198592824,99.64964886,143.8,143.79,0.033]
[1741198593195,75.43151227,143.8,143.79,0.033]
[1741198593499,56.78186341,143.8,143.79,0.033]
[1741198594012,6.9526,143.83,143.79,0.033]
[1741198594589,6.9526,143.83,143.79,312.033]
[1741198595599,24.3342,143.83,143.79,312.033]
[1741198595825,6.9526,143.83,143.79,312.033]
[1741198596641,63.73436341,143.84,143.79,312.033]
[1741198596826,56.78186341,143.84,143.79,312.033]
[1741198597027,63.73266341,143.87,143.79,6.9875]
[1741198597205,56.78186341,143.87,143.79,6.9873]
[1741198597406,56.78186341,143.87,143.79,51.11217533]
[1741198597601,56.78186341,143.87,143.79,0.033]
[1741198597602,56.78186341,143.86,143.79,0.033]
[1741198598039,56.78186341,143.86,143.79,6.9874]
[1741198598426,6.9497,143.89,143.79,8.44743777]
[1741198598737,6.9497,143.89,143.8,44.12487533]
[1741198599111,63.73016341,143.92,143.82,44.12487533]
[1741198599310,63.73016341,143.92,143.83,44.12487533]
[1741198599576,63.73016341,143.92,143.84,6.9521]
[1741198599723,63.73026341,143.92,143.84,6.9521]
[1741198599914,63.73026341,143.92,143.83,51.07737533]
[1741198600119,56.78186341,143.92,143.87,312.0]
[1741198600308,6.9478,143.93,143.87,312.0]
[1741198601229,6.9463,143.96,143.85,0.42648471]
[1741198601444,6.9454,143.98,143.88,44.55136004]
[1741198601647,6.9454,143.98,143.9,6.9492]
[1741198601835,6.9444,144.0,143.9,51.07407533]
[1741198602352,6.9444,144.0,143.9,52.53281669]
[1741198602646,6.9444,144.0,143.91,44.12487533]
[1741198603050,6.4444,144.0,143.91,44.12487533]
[1741198603214,6.4444,144.0,143.89,143.8497]
[1741198603424,6.4444,144.0,143.89,187.97457533]
[1741198603737,6.9439,144.01,143.9,45.58374121]
[1741198603932,6.9439,144.01,143.91,44.12487533]
[1741198604139,18.64964886,144.0,143.93,312.0]
[1741198604436,18.64964886,144.0,143.89,80.9]
[1741198604624,81.08566341,144.01,143.89,126.48374461]
[1741198604819,6.9439,144.01,143.91,44.55136004]
[1741198605161,6.9439,144.01,143.92,44.12487533]
[1741198605357,6.9439,144.01,143.91,125.45136004]
[1741198605651,56.78186341,144.03,143.92,44.12487533]
[1741198605854,6.9434,144.02,143.92,51.07287533]
[1741198606065,6.9434,144.02,143.93,45.58349606]
[1741198606357,0.03,144.0,143.94,44.55136004]
[1741198606559,0.03,144.0,143.95,44.12487533]
[1741198606736,0.03,144.0,143.95,45.58305986]
[1741198607265,0.03,144.0,143.95,44.12487533]
[1741198607429,0.03,144.0,143.99,312.0]
[1741198609175,0.03,144.0,143.98,51.49676004]
[1741198609356,0.03,144.0,143.96,0.14216157]
[1741198609357,0.03,144.0,143.97,51.07067533]
[1741198609542,0.03,144.0,143.96,1.45793296]
[1741198609868,0.03,144.0,143.95,224.7468]
[1741198610045,0.03,144.0,143.94,7.68648471]
[1741198610236,0.03,144.0,143.94,51.81136004]
[1741198610435,0.03,144.0,143.94,7.26]
[1741198611570,0.03,144.0,143.87,219.3853]
[1741198611571,0.17216157,144.0,143.87,219.3853]
[1741198611736,56.78186341,143.99,143.87,8.5359]
[1741198611937,6.9454,143.98,143.89,0.42648471]
[1741198612242,56.78186341,143.99,143.91,356.12487533]
[1741198612243,63.72696341,143.99,143.91,356.12487533]
[1741198612437,6.9746,144.0,143.92,44.12487533]
[1741198612637,6.9746,144.0,143.91,44.12487533]
[1741198612874,6.9746,144.0,143.91,0.42648471]
[1741198613050,24.3357,144.0,143.91,44.55136004]
[1741198613250,0.03,144.0,143.94,44.55136004]
[1741198613454,0.03,144.0,143.96,44.12487533]
[1741198613665,0.03,144.0,143.95,44.12487533]
[1741198613970,0.03,144.0,143.95,51.07157533]
[1741198614344,0.03,144.0,143.92,132.1151369]
[1741198614673,0.03,144.0,143.94,44.55136004]
[1741198614857,0.03,144.0,143.94,219.68471452]
[1741198615058,0.03,144.0,143.97,44.55136004]
[1741198615248,0.03,144.0,143.98,44.12487533]
[1741198615444,0.03,144.0,143.99,45.58285187]
[1741198615648,0.03,144.0,143.99,358.00928681]
[1741198615867,0.03,144.0,143.99,363.49626004]
[1741198616070,0.03,144.0,143.99,370.61409847]
[1741198616779,0.03,144.0,143.99,526.44807047]
[1741198617150,0.03,144.0,143.99,607.34807047]
[1741198617961,0.03,144.0,143.99,544.43138471]
[1741198618366,0.03,144.0,143.99,537.06]
[1741198618574,0.03,144.0,143.94,219.07037059]
[1741198618757,0.03,144.0,143.94,1.27037059]
[1741198620476,0.03,144.0,143.94,44.12487533]
[1741198620770,0.03,144.0,143.92,136.9]
[1741198620975,0.03,144.0,143.89,50.38927533]
[1741198621172,18.67964886,144.0,143.87,196.81197533]
[1741198621377,18.64964886,143.98,143.87,1.5766]
[1741198621556,0.28432314,143.97,143.87,312.0]
[1741198621748,56.78186341,143.96,143.87,312.0]
[1741198621953,24.3139,143.95,143.87,312.0]
[1741198622162,18.933972,143.94,143.87,312.0]
[1741198622472,18.64964886,143.92,143.79,187.15107533]
[1741198622654,56.78186341,143.91,143.79,44.15787533]
[1741198622854,56.78186341,143.9,143.79,81.21732314]
[1741198623278,18.64964886,143.88,143.79,0.033]
[1741198623576,0.28432314,143.85,143.79,0.033]
[1741198623769,56.78186341,143.84,143.79,0.033]
[1741198623977,81.11606341,143.83,143.79,0.033]
[1741198624178,18.64964886,143.82,143.79,0.033]
[1741198624374,56.78186341,143.81,143.79,0.033]
[1741198625081,75.57367384,143.8,143.79,0.033]
[1741198625574,75.43151227,143.8,143.79,0.033]
[1741198625754,63.73376341,143.85,143.79,0.033]
[1741198626078,56.78186341,143.85,143.79,0.033]
[1741198626459,18.64964886,143.84,143.79,0.033]
[1741198627065,57.20834812,143.83,143.79,0.033]
[1741198627264,57.20834812,143.83,143.78,0.033]
[1741198627265,0.14216157,143.8,143.78,0.033]
[1741198627574,75.43151227,143.8,143.78,0.033]
[1741198627778,76.89273822,143.8,143.68,28.36278316]
[1741198628075,6.9545,143.79,143.68,44.12487533]
[1741198628374,14.17455067,143.79,143.71,356.12487533]
[1741198628567,14.17455067,143.79,143.76,0.42648471]
[1741198628770,14.17455067,143.79,143.78,44.55136004]
[1741198628962,84.22979318,143.81,143.8,20.0]
[1741198629168,69.44194761,143.81,143.8,208.4270369]
[1741198629559,69.44194761,143.81,143.8,500.28487533]
[1741198629755,69.44194761,143.81,143.8,456.16]
[1741198629969,69.44194761,143.81,143.8,319.26]
[1741198630287,69.44194761,143.81,143.8,370.33897533]
[1741198630590,33.06364761,143.81,143.8,588.56546004]
[1741198631256,33.06364761,143.81,143.8,444.28487533]
[1741198631559,63.73266341,143.87,143.8,352.4821828]
[1741198631779,75.43151227,143.86,143.8,40.4821828]
[1741198632394,18.64964886,143.84,143.8,33.2221828]
[1741198632679,18.64964886,143.82,143.8,33.2551828]
[1741198632854,75.43151227,143.81,143.8,33.2551828]
[1741198633050,18.79181043,143.81,143.8,0.033]
[1741198633264,18.79181043,143.8,143.72,18.98410446]
[1741198633471,18.64964886,143.78,143.72,18.98410446]
[1741198633674,1.46122595,143.78,143.72,18.98410446]
[1741198634079,6.956,143.76,143.72,18.98410446]
[1741198634272,18.64964886,143.75,143.72,18.98410446]
[1741198634475,18.64964886,143.75,143.68,10.77696565]
[1741198634675,18.64964886,143.75,143.68,322.77696565]
[1741198635268,20.11087481,143.75,143.68,322.77696565]
[1741198635579,1.46122595,143.75,143.68,322.77696565]
[1741198635783,18.79181043,143.74,143.68,10.77696565]
[1741198636080,1.46122595,143.73,143.68,10.77696565]
[1741198636265,18.64964886,143.71,143.68,10.77696565]
[1741198636465,18.64964886,143.71,143.64,0.033]
[1741198637079,18.64964886,143.69,143.64,0.033]
[1741198637471,81.0,143.7,143.64,0.033]
[1741198638185,6.9599,143.68,143.64,0.033]
[1741198638486,87.9599,143.68,143.64,0.033]
[1741198638872,101.11087481,143.67,143.64,0.033]
[1741198639070,18.64964886,143.65,143.64,0.033]
[1741198639269,20.11087481,143.65,143.64,0.033]
[1741198639472,0.28432314,143.66,143.64,0.033]
[1741198639666,87.9595,143.69,143.64,0.033]
[1741198639871,81.0,143.68,143.64,0.033]
[1741198640081,18.64964886,143.67,143.64,0.033]
[1741198640288,18.64964886,143.65,143.64,0.033]
[1741198640602,81.0,143.65,143.64,0.033]
[1741198640883,99.64964886,143.65,143.64,0.033]
[1741198641473,101.11087481,143.65,143.64,0.033]
[1741198641671,18.79181043,143.64,143.53,88.16]
[1741198641887,18.64964886,143.62,143.55,312.0]
[1741198642300,18.64964886,143.6,143.49,51.41787533]
[1741198642492,81.0,143.59,143.5,20.948539]
[1741198643773,81.0,143.59,143.51,6.9681]
[1741198643774,6.9647,143.58,143.51,6.9681]
[1741198644089,81.0,143.57,143.5,20.948539]
[1741198644295,81.0,143.56,143.5,20.948539]
[1741198644489,99.64964886,143.55,143.5,20.948539]
[1741198644697,18.64964886,143.53,143.5,20.948539]
[1741198644996,18.64964886,143.51,143.5,20.948539]
[1741198645487,81.0,143.52,143.5,20.948539]
[1741198645793,106.61774886,143.51,143.5,16.24801797]
[1741198645995,25.75991043,143.51,143.49,0.033]
[1741198646173,0.42648471,143.49,143.47,1.0087085]
[1741198646495,81.0,143.48,143.37,51.13267533]
[1741198646681,6.9678,143.52,143.43,44.12487533]
[1741198646876,6.9657,143.56,143.44,45.58841276]
[1741198647075,18.64964886,143.55,143.44,126.48841276]
[1741198647575,101.11087481,143.55,143.44,80.9]
[1741198647787,101.11087481,143.55,143.5,0.033]
[1741198647994,18.64964886,143.53,143.5,0.033]
[1741198648168,20.11087481,143.53,143.5,0.033]
[1741198648993,0.28432314,143.52,143.5,0.033]
[1741198649187,81.0,143.52,143.5,0.033]
[1741198649926,0.28432314,143.5,143.41,80.9]
[1741198650083,18.64964886,143.48,143.4,7.28]
[1741198650602,82.46122595,143.49,143.4,14.2533]
[1741198650787,82.74554909,143.48,143.4,7.28]
[1741198650981,18.64964886,143.47,143.38,80.9]
[1741198651180,18.64964886,143.45,143.37,0.033]
[1741198651419,81.0,143.49,143.38,1.46447993]
[1741198651600,81.0,143.49,143.38,45.58935526]
[1741198651910,18.79181043,143.46,143.37,0.033]
[1741198652081,18.79181043,143.44,143.37,0.033]
[1741198652289,101.25303638,143.44,143.37,312.033]
[1741198653180,101.25303638,143.44,143.37,0.033]
[1741198653377,81.0,143.43,143.37,0.033]
[1741198654283,87.9721,143.43,143.37,0.033]
[1741198654597,6.9705,143.46,143.37,44.15787533]
[1741198654788,1.46122595,143.5,143.39,44.12487533]
[1741198654789,6.9691,143.49,143.39,44.12487533]
[1741198655003,6.9691,143.49,143.39,217.8]
[1741198655293,81.0,143.54,143.45,44.12487533]
[1741198655485,24.385,143.53,143.42,1.46347187]
[1741198655688,24.385,143.53,143.42,80.9]
[1741198655882,6.9671,143.53,143.44,44.12487533]
[1741198656098,6.9671,143.53,143.48,312.0]
[1741198656708,6.9662,143.55,143.47,0.14216157]
[1741198656886,18.64964886,143.54,143.45,125.02487533]
[1741198657085,18.64964886,143.54,143.44,136.9]
[1741198657286,0.28432314,143.53,143.44,136.9]
[1741198657602,0.28432314,143.51,143.41,6.4604]
[1741198657781,18.64964886,143.51,143.4,128.01910119]
[1741198657980,24.67452314,143.5,143.4,82.4303]
[1741198658390,18.64964886,143.49,143.4,82.4303]
[1741198658898,99.64964886,143.49,143.4,82.4303]
[1741198659218,81.0,143.49,143.4,126.55517533]
[1741198659422,99.64964886,143.48,143.38,136.9]
[1741198659586,99.64964886,143.48,143.37,80.933]
[1741198659587,18.64964886,143.46,143.37,80.933]
[1741198659786,20.11087481,143.46,143.38,312.0]
[1741198660020,18.64964886,143.44,143.38,312.0]
[1741198661819,0.03,143.5,143.42,0.56864628]
[1741198662021,0.03,143.5,143.48,0.28432314]
[1741198662195,0.03,143.5,143.48,218.08432314]
[1741198662899,0.03,143.5,143.49,0.56864628]
[1741198663095,0.03,143.5,143.49,46.15655883]
[1741198664101,6.9633,143.61,143.5,18.933972]
[1741198664306,0.28432314,143.59,143.49,1.2743546]
[1741198664509,0.28432314,143.57,143.46,80.9]
[1741198664703,0.14216157,143.55,143.46,217.8]
[1741198664907,0.14216157,143.55,143.49,312.0]
[1741198665412,18.64964886,143.56,143.49,312.0]
[1741198665989,6.9666,143.54,143.49,312.0]
[1741198666190,6.9666,143.54,143.45,0.28432314]
[1741198666401,18.87522595,143.57,143.46,0.28432314]
[1741198666713,18.64964886,143.56,143.46,137.04216157]
[1741198667017,99.64964886,143.56,143.46,82.3633678]
[1741198667196,99.64964886,143.56,143.47,44.69352161]
[1741198667394,81.0,143.56,143.47,46.15659086]
[1741198667590,81.0,143.56,143.47,2.03171553]
[1741198667790,81.0,143.56,143.47,46.15659086]
[1741198668115,18.64964886,143.57,143.47,263.95659086]
[1741198668423,18.64964886,143.57,143.48,6.9696]
[1741198668928,0.03,143.65,143.56,44.40919847]
[1741198669130,0.03,143.65,143.57,45.87145807]
[1741198669424,0.03,143.65,143.59,312.0]
[1741198670336,0.03,143.65,143.59,318.9641]
[1741198670628,18.64964886,143.63,143.59,312.0]
[1741198671232,18.64964886,143.61,143.54,80.9]
[1741198671529,99.64964886,143.61,143.52,88.26]
[1741198671728,99.64964886,143.61,143.52,80.9]
[1741198671922,81.14216157,143.6,143.5,80.9]
[1741198672129,20.11087481,143.59,143.49,1.6063]
[1741198672316,18.64964886,143.57,143.49,1.6063]
[1741198672517,6.9647,143.58,143.49,1.6063]
[1741198673030,6.9647,143.58,143.48,217.8]
[1741198673227,18.64964886,143.57,143.48,217.8]
[1741198673444,18.64964886,143.57,143.48,136.9]
[1741198673949,18.64964886,143.57,143.47,262.1000369]
[1741198674314,1.74554909,143.57,143.49,312.0]
[1741198674616,1.74554909,143.57,143.47,0.033]
[1741198674617,0.14216157,143.55,143.47,0.033]
[1741198674825,18.64964886,143.54,143.47,0.033]
[1741198675539,0.14216157,143.55,143.47,0.033]
[1741198675740,18.64964886,143.56,143.47,0.033]
[1741198676053,0.14216157,143.55,143.47,0.033]
[1741198676536,6.9652,143.57,143.47,0.31732314]
[1741198676843,6.9652,143.57,143.47,262.24219847]
[1741198677214,20.25303638,143.56,143.47,217.833]
[1741198677629,20.25303638,143.56,143.47,529.833]
[1741198678438,18.64964886,143.54,143.47,529.833]
[1741198678633,24.3817,143.55,143.47,312.033]
[1741198679329,18.79181043,143.54,143.47,312.033]
[1741198680334,18.64964886,143.52,143.47,0.033]
[1741198680514,82.46122595,143.51,143.37,233.2642]
[1741198680716,6.9671,143.53,143.44,44.12487533]
[1741198680957,81.0,143.58,143.47,44.12487533]
[1741198681242,87.9652,143.57,143.49,44.12487533]
[1741198681444,6.9652,143.57,143.5,0.56864628]
[1741198681614,87.9644,143.59,143.51,44.12487533]
[1741198681819,6.9644,143.59,143.51,44.12487533]
[1741198682022,6.9644,143.59,143.51,125.02487533]
[1741198682343,17.4106,143.59,143.51,80.9]
[1741198682554,6.9637,143.6,143.52,0.56864628]
[1741198682731,6.9637,143.6,143.52,80.9]
[1741198683117,24.3731,143.6,143.52,125.02487533]
[1741198683341,24.3731,143.6,143.55,312.0]
[1741198683544,99.64964886,143.59,143.55,312.0]
[1741198683729,99.64964886,143.59,143.49,217.8]
[1741198683925,18.64964886,143.57,143.49,80.9]
[1741198684130,0.14216157,143.56,143.47,80.9]
[1741198684323,6.9671,143.53,143.44,261.92487533]
[1741198684518,6.9671,143.53,143.44,131.99627533]
[1741198684718,6.9669,143.54,143.47,44.12487533]
[1741198685041,6.9669,143.54,143.48,0.56864628]
[1741198685217,17.4131,143.57,143.5,0.56864628]
[1741198685421,6.9647,143.58,143.51,1.4628293]
[1741198685822,6.9647,143.58,143.53,0.56864628]
[1741198686025,6.9647,143.58,143.53,217.8]
[1741198686441,17.4102,143.6,143.53,217.8]
[1741198686955,0.42648471,143.59,143.5,80.9]
[1741198687140,18.64964886,143.57,143.47,0.56864628]
[1741198687455,99.64964886,143.57,143.47,218.36864628]
[1741198687859,99.64964886,143.57,143.47,262.49352161]
[1741198688059,99.64964886,143.57,143.47,218.36864628]
[1741198688255,18.64964886,143.55,143.47,80.9]
[1741198688559,105.3833,143.54,143.43,7.3]
[1741198688733,18.64964886,143.52,143.43,217.8]
[1741198689674,24.37904574,143.52,143.44,312.0]
[1741198689858,18.64964886,143.52,143.44,312.0]
[1741198690154,18.64964886,143.5,143.44,312.0]
[1741198690354,81.0,143.49,143.4,80.9]
[1741198690560,125.64663638,143.48,143.38,219.07533228]
[1741198690759,125.64663638,143.48,143.38,217.8]
[1741198691055,18.64964886,143.46,143.38,80.9]
[1741198691262,18.64964886,143.44,143.37,0.033]
[1741198691848,81.0,143.45,143.37,0.033]
[1741198692746,6.9715,143.44,143.37,0.033]
[1741198692943,81.0,143.45,143.38,0.56864628]
[1741198693145,87.9713,143.45,143.38,44.55136004]
[1741198693348,105.3989,143.45,143.4,312.0]
[1741198693539,81.0,143.45,143.4,312.0]
[1741198693744,81.0,143.51,143.41,0.56864628]
[1741198693951,6.9686,143.5,143.42,45.58865956]
[1741198694156,24.3902,143.5,143.41,262.49352161]
[1741198694460,6.9686,143.5,143.41,262.35136004]
[1741198694642,19.21829514,143.49,143.41,217.8]
[1741198694848,24.3902,143.5,143.41,217.8]
[1741198695159,18.64964886,143.49,143.41,217.8]
[1741198695661,24.3902,143.5,143.41,217.8]
[1741198695955,24.3902,143.5,143.41,224.7728]
[1741198696161,6.9686,143.5,143.43,44.12487533]
[1741198696690,6.9671,143.53,143.44,0.56864628]
[1741198696846,24.385,143.53,143.48,312.0]
[1741198697042,99.64964886,143.52,143.48,312.0]